[Event "LEM Niedersachsen-Meister 2025"]
[Site "Verden"]
[Date "2025.01.04"]
[Round "5.13"]
[White "Sreyas Payyappat"]
[Black "Gaertner, Alessandro"]
[Result "1/2-1/2"]
[ECO "B14"]
[WhiteElo "2115"]
[BlackElo "1970"]
[Annotator "TA"]
[PlyCount "107"]
[EventDate "2024.12.27"]
[EventType "swiss"]
[EventCountry "GER"]
[SourceTitle "playchess.com"]
[Source "ChessBase"]
[SourceQuality "1"]
[TimeControl "40/5400+30:1800+30"]

{[%evp 14,107,0,-35,35,19,29,0,0,0,0,-31,-16,-16,-11,-12,0,0,0,0,18,8,13,0,12,-80,-78,-168,-175,-168,-177,-175,-178,-166,-132,-112,-115,-169,-130,-150,-79,-83,-79,-86,-85,-86,-79,-79,-79,-98,0,-98,0,-96,-71,-87,-87,-93,-86,-175,-51,-86,-57,-90,-90,-90,-2,-90,-90,-90,-90,-90,-90,-90,-90,-109,-109,-109,-51,-51,-51,-51,-51,-51,-20,-20,-20,-20,-20,-20,-20,-20,0,0,0,-20]} 1. e4 {[%emt 0:00:04]} c6 {[%emt 0:00:57]} 2. d4 {[%emt 0:00:05]} d5 {[%emt 0:00:06]} 3. exd5 {[%emt 0:00:04]} cxd5 {[%emt 0:00:06]} 4. c4 {[%emt 0:01:11]} Nf6 {[%emt 0:00:25]} 5. Nc3 {[%emt 0:00:13]} Nc6 {[%emt 0:00:15]} 6. Nf3 {[%emt 0:00:14]} g6 {[%emt 0:03:11]} 7. c5 {[%emt 0:03:08]} Bg7 {[%emt 0:10:22]} 8. Bb5 {[%emt 0:04:49]} Bd7 {[%emt 0:13:46]} (8... Bg4 $15) 9. O-O $14 {[%emt 0:02:21]} O-O {[%emt 0:01:39]} 10. Bxc6 {[%emt 0:03:15]} Bxc6 {[%emt 0:04:59]} 11. b4 {[%emt 0:04:03]} Ne4 {[%emt 0:04:17]} 12. Bb2 {[%emt 0:01:43]} a5 {[%emt 0:11:21]} 13. a3 {[%emt 0:01:13]} axb4 {[%emt 0:24:27]} 14. axb4 {[%emt 0:00:07]} Qd7 {[%emt 0:07:24]} 15. Qb3 {[%emt 0:04:39]} Nxc3 {[%emt 0:04:08]} 16. Qxc3 {[%emt 0:02:27]} Qf5 {[%emt 0:02:52]} 17. Rfe1 {[%emt 0:05:35]} e6 {[%emt 0:04:09]} (17... Rxa1 {simplifies} 18. Rxa1 f6 19. h3 Bb5) 18. Ne5 {[%emt 0:10:22]} Bb5 {[%emt 0:01:12]} 19. c6 {[%emt 0:08:35]} (19. h3 $11) 19... bxc6 $17 {[%emt 0:01:12]} 20. Nxc6 {[%emt 0:00:53]} (20. Ra5 $17 {was called for.}) 20... Bxc6 $19 {[%emt 0:00:27]} 21. Qxc6 {[%emt 0:00:26]} Rac8 {[%emt 0:00:34]} 22. Qa6 {[%emt 0:02:25]} Rc2 {[%emt 0:02:07][%csl LRb2,LRf2]} 23. Re2 {[%emt 0:00:38]} Rxb2 {[%emt 0:00:31]} 24. Rxb2 {[%emt 0:00:06] aiming for Rd1.} Bxd4 {[%emt 0:00:04]} 25. Qa2 {[%emt 0:06:39]} Bxb2 {[%emt 0:01:06]} 26. Qxb2 {[%emt 0:00:05][%mdl 4096] Endgame KQR-KQR. Black is a pawn up.} Rb8 {[%emt 0:00:42]} (26... Rc8 $142 27. b5 d4 28. Qxd4 (28. b6 Qd5 $15) 28... Qxb5) 27. b5 $17 {[%emt 0:00:33]} d4 {[%emt 0:00:39]} 28. b6 {[%emt 0:01:03]} Qd5 {[%emt 0:00:49]} 29. Rd1 {[%emt 0:03:30]} Qc6 {[%emt 0:00:32]} 30. Qxd4 {[%emt 0:01:14]} Qxb6 {[%emt 0:00:23]} (30... Rxb6 31. Qd8+ Kg7 32. Qd4+ f6 33. h4 $11) 31. Qf6 {[%emt 0:00:30]} Qb3 {[%emt 0:00:39]} (31... Qb1 $17 {[%cal Rb1d1]} 32. Qd8+ Rxd8 33. Rxb1 Rd4) 32. Rc1 {[%emt 0:00:26]} (32. Rd8+ $11 Rxd8 33. Qxd8+ Kg7 34. Qd4+ Kh6 35. Qf4+ Kg7 36. Qd4+) 32... Qb6 {[%emt 0:00:33]} 33. Rd1 $1 {[%emt 0:00:43]} Qc7 {[%emt 0:00:25]} 34. h4 {[%emt 0:00:38][%cal Oh4h5]} h5 {[%emt 0:00:36]} 35. g3 {[%emt 0:01:23]} Rf8 {[%emt 0:00:26]} 36. g4 {[%emt 0:03:52] [#]} Qc5 {[%emt 0:00:11]} (36... hxg4 37. Qg5 $17) (36... Qc2 $1 $19 {[%cal Rc2d1]} 37. Qd4 hxg4 38. Qxg4 Qc5) 37. g5 {[%emt 0:03:23]} Qf5 {[%emt 0:00:22]} (37... e5 {looks sharper.} 38. Rd6 Re8 39. Rd8 Rxd8 40. Qxd8+ Kh7) 38. Kh2 {[%emt 0:01:24]} Qxf6 {[%emt 0:00:44]} 39. gxf6 {[%emt 0:00:06] [#] KR-KR. Black is a pawn up.} Re8 {[%emt 0:00:36]} (39... e5 $1 $17 40. Rd7 Re8) 40. Rd7 {[%emt 0:00:16]} (40. f4 $11 {remains equal.}) 40... e5 {[%emt 0:00:06]} 41. Re7 {[%emt 0:30:29]} Rd8 {[%emt 0:04:39]} 42. Rxe5 {[%emt 0:00:00]} Rd6 {[%emt 0:00:11]} 43. Kg3 {[%emt 0:00:00]} Rxf6 {[%emt 0:00:59]} 44. f4 {[%emt 0:00:00]} Kg7 {[%emt 0:00:22]} 45. Ra5 {[%emt 0:00:00]} Rc6 {[%emt 0:01:27]} ({Black should play} 45... Kh6 $17) 46. f5 $1 $15 {[%emt 0:00:00]} Rc3+ {[%emt 0:00:57]} 47. Kg2 {[%emt 0:00:00]} Rc4 {[%emt 0:01:23]} 48. fxg6 {[%emt 0:00:00]} fxg6 {[%emt 0:00:25]} 49. Kg3 {[%emt 0:00:00]} Rc3+ {[%emt 0:00:36]} 50. Kg2 {[%emt 0:00:00]} Kf6 {[%emt 0:00:28]} 51. Ra6+ {[%emt 0:00:00]} Kf5 {[%emt 0:00:14]} 52. Ra5+ {[%emt 0:00:00]} Kg4 {[%emt 0:00:43][%cal Oc3c4] ...Rc4! would now be deadly.} 53. Ra4+ {[%emt 0:00:00]} Kf5 {[%emt 0:00:08]} 54. Ra5+ {[%emt 0:07:39]} 1/2-1/2

[Event "LEM Niedersachsen-Meister 2025"]
[Site "Verden"]
[Date "2025.01.04"]
[Round "5.14"]
[White "de Vries, Carsten"]
[Black "Kieselbach, Jannik"]
[Result "0-1"]
[ECO "C65"]
[WhiteElo "1898"]
[BlackElo "1979"]
[Annotator "NA RC"]
[PlyCount "112"]
[EventDate "2024.12.27"]
[EventType "swiss"]
[EventCountry "GER"]
[SourceTitle "playchess.com"]
[Source "ChessBase"]
[SourceQuality "1"]
[TimeControl "40/5400+30:1800+30"]

1. e4 {[%emt 0:25:44]} e5 {[%emt 0:00:19]} 2. Nf3 {[%emt 0:00:09]} Nc6 {[%emt 0:00:13]} 3. Bb5 {[%emt 0:00:02]} Nf6 {[%emt 0:00:50]} 4. d3 {[%emt 0:00:07]} Bc5 {[%emt 0:00:14]} 5. Bxc6 {[%emt 0:00:05]} dxc6 {[%emt 0:00:14]} 6. Nbd2 {[%emt 0:00:03] C65: Ruy Lopez: Berlin Defence (3...Nf6), unusual lines and 4 0-0 Bc5.} Qe7 {[%emt 0:02:35]} 7. Nc4 {[%emt 0:00:16]} Nd7 {[%emt 0:03:50]} 8. O-O {[%emt 0:01:40]} f6 {[%emt 0:06:24]} 9. Be3 {[%emt 0:00:50]} Nb6 {[%emt 0:04:37]} 10. Bxc5 {[%emt 0:00:42]} Qxc5 {[%emt 0:00:09]} 11. Ne3 {[%emt 0:00:22]} Qe7 {[%emt 0:06:31]} 12. Nh4 {[%emt 0:02:42]} Be6 {[%emt 0:04:12]} 13. a4 {[%emt 0:00:32]} Nd7 {[%emt 0:00:41]} 14. Nhf5 {[%emt 0:02:14]} Bxf5 {[%emt 0:03:03]} 15. Nxf5 {[%emt 0:00:01]} Qf7 {[%emt 0:00:23]} 16. Qe2 {[%emt 0:07:11]} O-O-O {[%emt 0:02:15]} 17. b4 {[%emt 0:00:57]} g6 {[%emt 0:07:01]} 18. Ne3 {[%emt 0:00:16]} f5 {[%emt 0:04:02]} ({Black should try} 18... Qe6 $14) 19. f3 {[%emt 0:00:47]} f4 {[%emt 0:01:03]} 20. Nc4 {[%emt 0:00:37]} Qe6 {[%emt 0:01:57]} 21. Qf2 {[%emt 0:01:40]} Kb8 {[%emt 0:02:22]} 22. Rfb1 {[%emt 0:01:22]} g5 {[%emt 0:13:02]} 23. b5 {[%emt 0:02:43]} c5 {[%emt 0:01:13]} 24. a5 {[%emt 0:02:07]} b6 {[%emt 0:11:07]} 25. axb6 {[%emt 0:00:37]} axb6 {[%emt 0:05:30]} 26. Ra6 {[%emt 0:02:39]} Kc8 {[%emt 0:02:21]} 27. Rba1 {[%emt 0:04:45]} h5 {[%emt 0:06:46]} 28. Ra8+ {[%emt 0:10:44]} Nb8 {[%emt 0:00:06]} 29. Kf1 {[%emt 0:11:26]} Rhg8 {[%emt 0:05:34]} 30. Ke2 {[%emt 0:01:12]} Rg7 {[%emt 0:00:39]} 31. h3 {[%emt 0:14:00]} g4 {[%emt 0:02:21]} 32. hxg4 {[%emt 0:01:36]} hxg4 {[%emt 0:00:06]} 33. Rg1 {[%emt 0:03:00]} Rdg8 {[%emt 0:02:58]} 34. Raa1 {[%emt 0:00:35]} Kb7 {[%emt 0:00:49]} 35. Rab1 {[%emt 0:00:43]} Nd7 {[%emt 0:01:00]} 36. Kd2 {[%emt 0:01:10]} Rg5 {[%emt 0:00:52]} 37. Kc3 {[%emt 0:01:08]} Qg6 {[%emt 0:00:45]} 38. fxg4 {[%emt 0:01:42]} Rxg4 {[%emt 0:00:23]} 39. Ra1 {[%emt 0:00:35]} Rg3 {[%emt 0:00:32]} 40. Kb2 {[%emt 0:00:52]} (40. Qe1 $1 $11) 40... Qg7 {[%emt 0:00:49]} 41. Nd2 {[%emt 0:01:43]} Nf6 {[%emt 0:05:44]} 42. Nf3 {[%emt 0:01:43]} Ng4 {[%emt 0:02:46]} 43. Qd2 {[%emt 0:00:52]} Qd7 {[%emt 0:03:33]} 44. c4 {[%emt 0:01:14]} Qe6 $2 {[%emt 0:18:33]} ({Black should play} 44... Ne3 $19 45. Qc3 Rxg2+ (45... Nxg2 46. Qa3 c6 47. Qa7+ Kc8 48. Qa8+ Kc7 49. Ra7+ Kd6 50. Rxd7+ Kxd7 51. Qxc6+ Ke7 52. Ra1) 46. Rxg2 Rxg2+ 47. Kb3 Ng4 (47... Rc2 48. Ra7+ Kxa7 49. Qa1+ Kb8 50. Nxe5 $11)) 45. Kc3 {[%emt 0:05:58]} (45. Kc1 $11) 45... Kc8 {[%emt 0:01:01]} ({Of course not} 45... Ne3 $6 46. Qa2 Kc8 (46... Rxg2 47. Qa6+ Kb8 48. Qa8#) 47. Rh1 $16) 46. Ra8+ {[%emt 0:03:37]} Kd7 $11 {[%emt 0:00:02]} 47. Rxg8 {[%emt 0:00:31]} Qxg8 {[%emt 0:00:02]} 48. Qa2 {[%emt 0:02:53]} Kd6 {[%emt 0:01:02]} 49. Nh4 {[%emt 0:01:06]} Ne3 {[%emt 0:00:34]} 50. Qa7 {[%emt 0:03:06]} Qd8 {[%emt 0:00:50]} 51. Rh1 {[%emt 0:01:37]} Ke6 {[%emt 0:00:47]} 52. Nf3 {[%emt 0:04:10]} Rxf3 {[%emt 0:00:31]} 53. Rh6+ {[%emt 0:03:08]} Kf7 {[%emt 0:00:09]} 54. gxf3 {[%emt 0:02:47]} Qd4+ {[%emt 0:00:04]} 55. Kd2 {[%emt 0:01:14]} Qb2+ {[%emt 0:00:50]} 56. Ke1 {[%emt 0:00:23]} Qc1+ {[%emt 0:00:06]} 0-1

[Event "LEM Niedersachsen-Meister 2025"]
[Site "Verden"]
[Date "2025.01.04"]
[Round "5.15"]
[White "Celik, Abdullah"]
[Black "Wilmink, Anna"]
[Result "1/2-1/2"]
[ECO "D06"]
[WhiteElo "2032"]
[BlackElo "2033"]
[Annotator "NA RC"]
[PlyCount "52"]
[EventDate "2024.12.27"]
[EventType "swiss"]
[EventCountry "GER"]
[SourceTitle "playchess.com"]
[Source "ChessBase"]
[SourceQuality "1"]
[TimeControl "40/5400+30:1800+30"]

1. d4 {[%emt 0:08:07]} d5 {[%emt 0:00:14]} 2. c4 {[%emt 0:00:04]} c5 {[%emt 0:00:02]} 3. cxd5 {[%emt 0:00:15]} Qxd5 {[%emt 0:00:10]} 4. Nf3 {[%emt 0:00:21]} cxd4 {[%emt 0:00:07]} 5. Nc3 {[%emt 0:00:07]} Qa5 {[%emt 0:00:06]} 6. Nxd4 {[%emt 0:00:09] D06: Queen's Gambit: Symmetrical and Baltic Defences.} Nf6 {[%emt 0:00:08]} 7. Bd2 {[%emt 0:08:52]} e5 {[%emt 0:10:43]} 8. Nb3 {[%emt 0:00:05]} Qc7 {[%emt 0:01:11]} 9. Rc1 {[%emt 0:03:59]} Nc6 {[%emt 0:01:43]} 10. g3 {[%emt 0:14:33]} Be6 {[%emt 0:05:59]} 11. Bg2 {[%emt 0:04:16]} Be7 {[%emt 0:04:35]} 12. O-O {[%emt 0:01:11]} O-O {[%emt 0:03:52]} 13. Qc2 {[%emt 0:03:44]} Rac8 {[%emt 0:04:16]} 14. Ne4 {[%emt 0:05:34]} Nxe4 {[%emt 0:07:43]} 15. Qxe4 {[%emt 0:02:31]} f5 {[%emt 0:08:14]} 16. Qa4 {[%emt 0:02:56]} Bd7 {[%emt 0:19:41]} 17. Qc4+ {[%emt 0:04:56]} Kh8 {[%emt 0:00:15]} 18. Be3 {[%emt 0:01:25]} Qb8 {[%emt 0:02:23]} 19. Nc5 {[%emt 0:03:42]} (19. Qa4 $11) 19... Bxc5 $1 {[%emt 0:02:48]} 20. Bxc5 {[%emt 0:03:40]} Nd4 {[%emt 0:05:56]} 21. Qb4 {[%emt 0:02:47]} Nxe2+ {[%emt 0:02:21]} 22. Kh1 {[%emt 0:00:01]} Nxc1 {[%emt 0:01:48]} 23. Bxf8 {[%emt 0:00:06]} Rxf8 {[%emt 0:01:52]} 24. Rxc1 {[%emt 0:00:05]} b6 {[%emt 0:03:03]} 25. Qe7 $11 {[%emt 0:08:29]} Qe8 {[%emt 0:04:03]} 26. Qxe8 {[%emt 0:01:37]} Rxe8 {[%emt 0:01:49]} 1/2-1/2